bitfinex/quotes_BTCUSD_20250529
["timestamp","ask_amount","ask_price","bid_price","bid_amount"]
[1748550180729,0.46353731,106110.0,106100.0,0.75884797]
[1748550180952,0.46353731,106110.0,106100.0,0.74942353]
[1748550181167,0.45411322,106110.0,106100.0,0.65440797]
[1748550181383,0.45411322,106110.0,106100.0,0.66317692]
[1748550181622,0.45411322,106110.0,106100.0,1.06317692]
[1748550181844,0.45424902,106120.0,106110.0,0.24785511]
[1748550182063,0.6521381,106120.0,106110.0,0.25384008]
[1748550182294,0.45424902,106120.0,106110.0,0.26656093]
[1748550182547,0.44482547,106120.0,106110.0,0.74587686]
[1748550182765,0.44482547,106120.0,106110.0,1.09464466]
[1748550182980,0.44482556,106120.0,106110.0,1.09464466]
[1748550183216,0.44482556,106120.0,106110.0,1.10341184]
[1748550183217,0.44482547,106120.0,106110.0,1.10341184]
[1748550183443,0.44482547,106120.0,106110.0,1.09464466]
[1748550183680,0.00113873,106120.0,106110.0,1.09464466]
[1748550183924,0.43540289,106120.0,106110.0,1.09069161]
[1748550184163,0.43540289,106120.0,106110.0,1.10523246]
[1748550184164,0.42598031,106120.0,106110.0,1.10523246]
[1748550184382,0.42598031,106120.0,106110.0,1.10723246]
[1748550184833,1.05913373,106120.0,106110.0,0.35774512]
[1748550185067,1.05913373,106120.0,106110.0,0.35875413]
[1748550185362,0.63329215,106120.0,106110.0,0.36752715]
[1748550186308,1.05913373,106120.0,106110.0,0.36752715]
[1748550186540,1.07513373,106120.0,106110.0,0.02752778]
[1748550188912,1.07513373,106120.0,106110.0,0.42752778]
[1748550190254,1.07513373,106120.0,106110.0,0.02752778]
[1748550190940,1.07513373,106120.0,106110.0,0.02752886]
[1748550191620,0.64929215,106120.0,106110.0,0.02752886]
[1748550192072,1.07513373,106120.0,106110.0,0.02752886]
[1748550193400,1.18178768,106120.0,106110.0,0.03333757]
[1748550193883,1.18178768,106120.0,106110.0,0.02455574]
[1748550194122,1.18178768,106120.0,106110.0,0.03333878]
[1748550194354,1.18178768,106120.0,106110.0,0.03333868]
[1748550194579,1.16618768,106120.0,106110.0,0.03333868]
[1748550194811,1.46158768,106120.0,106110.0,0.03333806]
[1748550195233,1.46158768,106120.0,106110.0,0.03333759]
[1748550195481,1.46158768,106120.0,106110.0,0.03333688]
[1748550195695,1.46158768,106120.0,106110.0,0.02455607]
[1748550196138,1.46158768,106120.0,106110.0,0.03333707]
[1748550196572,1.46158768,106120.0,106110.0,0.03343707]
[1748550197255,1.46158768,106120.0,106110.0,0.02465607]
[1748550197478,1.46158768,106120.0,106110.0,0.03343732]
[1748550197692,1.46158768,106120.0,106110.0,0.0334371]
[1748550197971,1.46158768,106120.0,106110.0,0.02465607]
[1748550198916,1.46158768,106120.0,106110.0,0.03343687]
[1748550199130,1.46158768,106120.0,106110.0,0.02465607]
[1748550199620,1.46158768,106120.0,106110.0,0.02164082]
[1748550199843,1.46158768,106120.0,106110.0,0.03344082]
[1748550200061,1.46158768,106120.0,106110.0,0.02465601]
[1748550200710,1.46154768,106120.0,106110.0,0.03344379]
[1748550201184,1.46154768,106120.0,106110.0,0.02465601]
[1748550201861,1.46154768,106120.0,106110.0,0.03344378]
[1748550202077,1.46154768,106120.0,106110.0,0.02465601]
[1748550202294,1.46154768,106120.0,106110.0,0.03344305]
[1748550202530,1.35449373,106120.0,106110.0,0.03965601]
[1748550203237,1.35449373,106120.0,106110.0,0.04844206]
[1748550203472,1.35449373,106120.0,106110.0,0.02465601]
[1748550203935,1.35449373,106120.0,106110.0,0.03343863]
[1748550204176,1.35449373,106120.0,106110.0,0.02465597]
[1748550204631,1.05913373,106120.0,106110.0,0.02465597]
[1748550205090,1.37021373,106120.0,106110.0,0.02465597]
[1748550205310,1.38571373,106120.0,106110.0,0.02465597]
[1748550205540,1.37021373,106120.0,106110.0,0.02465597]
[1748550207133,1.37021373,106120.0,106110.0,0.03343898]
[1748550207345,1.37021373,106120.0,106110.0,0.02465597]
[1748550207799,1.37021373,106120.0,106110.0,0.03343877]
[1748550208011,1.07493373,106120.0,106110.0,0.03343877]
[1748550208226,1.37021373,106120.0,106110.0,0.02465597]
[1748550208440,1.37021373,106120.0,106110.0,0.02465587]
[1748550209122,1.37021373,106120.0,106110.0,0.03343847]
[1748550209987,1.37021373,106120.0,106110.0,0.02465587]
[1748550210238,1.37021373,106120.0,106110.0,0.03343928]
[1748550210476,1.37021373,106120.0,106110.0,0.02465587]
[1748550211174,1.37021373,106120.0,106110.0,0.03343917]
[1748550211841,1.37021373,106120.0,106110.0,0.03343976]
[1748550212257,1.37021373,106120.0,106110.0,0.02465587]
[1748550212918,1.3332765,106120.0,106110.0,0.02465587]
[1748550213804,1.3332765,106120.0,106110.0,0.03343989]
[1748550214247,1.3332765,106120.0,106110.0,0.03344607]
[1748550214460,1.3332765,106120.0,106110.0,0.02465587]
[1748550215819,0.89151492,106120.0,106110.0,0.04402845]
[1748550216030,1.3173565,106120.0,106110.0,0.04105587]
[1748550216247,0.89151492,106120.0,106110.0,0.04105587]
[1748550216680,0.89151492,106120.0,106110.0,0.04402845]
[1748550216903,0.89151492,106120.0,106110.0,0.04105587]
[1748550217340,0.89151492,106120.0,106110.0,0.04402973]
[1748550217563,0.89151492,106120.0,106110.0,0.04105589]
[1748550217818,0.89151492,106120.0,106110.0,0.04402973]
[1748550218032,0.89151492,106120.0,106110.0,0.04105589]
[1748550218698,0.89151492,106120.0,106110.0,0.03804082]
[1748550218911,0.89151492,106120.0,106110.0,0.04105596]
[1748550219549,0.89151492,106120.0,106110.0,0.04403058]
[1748550219753,0.89147492,106120.0,106110.0,0.04403058]
[1748550220421,0.89147492,106120.0,106110.0,0.04105596]
[1748550220628,0.89147492,106120.0,106110.0,0.04403058]
[1748550221735,0.89147492,106120.0,106110.0,0.0440333]
[1748550222169,0.89313492,106120.0,106110.0,0.0440333]
[1748550226189,0.89313492,106120.0,106110.0,0.03804082]
[1748550226376,0.89313492,106120.0,106110.0,0.04403388]
[1748550227734,0.89313492,106120.0,106110.0,0.02763388]
[1748550228204,0.893664,106120.0,106110.0,0.02763388]
[1748550228429,0.893664,106120.0,106110.0,0.04343388]
[1748550230698,0.893664,106120.0,106110.0,0.04343391]
[1748550232753,0.893664,106120.0,106110.0,0.02763391]
[1748550233640,0.908764,106120.0,106110.0,0.02763391]
[1748550233879,1.33513466,106120.0,106110.0,0.02763391]
[1748550240048,1.35063466,106120.0,106110.0,0.02763391]
[1748550242066,0.22028364,106110.0,106090.0,0.04857756]
[1748550242285,0.5245663,106100.0,106090.0,0.0001]
[1748550242501,0.93493696,106100.0,106090.0,0.0001]
[1748550244042,0.93593696,106100.0,106090.0,0.0001]
[1748550245873,0.93793696,106100.0,106090.0,0.0001]
[1748550246337,0.20739001,106080.0,106070.0,0.0165]
[1748550246566,0.19798227,106070.0,106060.0,0.12522]
[1748550246783,0.19798227,106070.0,106060.0,0.86522]
[1748550246998,0.62435293,106070.0,106060.0,0.7731]
[1748550247888,0.62435293,106070.0,106060.0,0.77359181]
[1748550248103,0.62435293,106070.0,106060.0,0.75699181]
[1748550248548,0.62435293,106070.0,106060.0,0.35699181]
[1748550248754,0.62435293,106070.0,106060.0,0.35999181]
[1748550248974,0.62435293,106070.0,106060.0,0.02299181]
[1748550249878,1.04412359,106070.0,106060.0,0.00649181]
[1748550250092,1.14460509,106070.0,106060.0,0.00649181]
[1748550250298,0.71823443,106070.0,106060.0,0.00649181]
[1748550250722,0.71823443,106070.0,106060.0,0.00349181]
[1748550251150,0.71823443,106070.0,106060.0,0.00549181]
[1748550251823,0.71823443,106070.0,106060.0,0.00249181]
[1748550252035,0.71823443,106070.0,106060.0,0.00349181]
[1748550261231,1.01299443,106070.0,106060.0,0.00349181]
[1748550262456,1.01299443,106070.0,106060.0,0.00359181]
[1748550270577,1.01299443,106070.0,106060.0,0.00660849]
[1748550276101,1.8671159,106070.0,106060.0,0.00660849]
[1748550276554,1.8671159,106070.0,106060.0,0.00660851]
[1748550278273,1.8829159,106070.0,106060.0,0.00660851]
[1748550278908,1.8829159,106070.0,106060.0,0.00660865]
[1748550280000,1.8671159,106070.0,106060.0,0.00660865]
[1748550280877,1.8671159,106070.0,106060.0,0.00660854]
[1748550281333,1.8668759,106070.0,106060.0,0.00660854]
[1748550281548,1.5723559,106070.0,106060.0,0.00660854]
[1748550281755,1.8668759,106070.0,106060.0,0.00660854]
[1748550282175,1.5723559,106070.0,106060.0,0.00660854]
[1748550282356,1.8668759,106070.0,106060.0,0.00660854]
[1748550283023,1.8514759,106070.0,106060.0,0.00660854]
[1748550283868,1.8673759,106070.0,106060.0,0.00660854]
[1748550284321,1.5728559,106070.0,106060.0,0.00660854]
[1748550284525,1.8673359,106070.0,106060.0,0.00660854]
[1748550289771,1.8672559,106070.0,106060.0,0.00660849]
[1748550294597,1.5569559,106070.0,106060.0,0.02240849]
[1748550294821,1.42448519,106070.0,106060.0,0.03890849]
[1748550298419,0.57082377,106070.0,106060.0,0.03890849]
[1748550298635,1.42448519,106070.0,106060.0,0.03890849]
[1748550300417,1.42448519,106070.0,106060.0,0.02240849]
[1748550301216,1.42448519,106070.0,106060.0,0.02240845]
[1748550301770,1.13012519,106070.0,106060.0,0.03750845]
[1748550302040,0.62166799,106070.0,106060.0,0.25005042]
[1748550302276,0.62166799,106070.0,106060.0,0.26245891]
[1748550302501,0.62166799,106070.0,106060.0,0.66344326]
[1748550302739,1.0484987,106070.0,106060.0,0.27287161]
[1748550302960,1.0484987,106070.0,106060.0,0.28229987]
[1748550303189,1.0484987,106070.0,106060.0,0.67287161]
[1748550303414,1.0484987,106070.0,106060.0,0.6758492]
[1748550304310,1.0484987,106070.0,106060.0,0.75834085]
[1748550305465,1.03907124,106070.0,106060.0,0.75834085]
[1748550305724,1.02964369,106070.0,106060.0,0.74891042]
[1748550305951,1.02964369,106070.0,106060.0,0.75833895]
[1748550306175,1.02964369,106070.0,106060.0,0.35833895]
[1748550306971,1.02964369,106070.0,106060.0,0.75833895]
[1748550309116,1.02964369,106070.0,106060.0,0.76776739]
[1748550309342,1.02964369,106070.0,106060.0,0.75833895]
[1748550309780,1.02964369,106070.0,106060.0,0.35833895]
[1748550310223,1.02964369,106070.0,106060.0,0.75833895]
[1748550311242,1.02964369,106070.0,106060.0,0.75437455]
[1748550312403,1.02964369,106070.0,106060.0,0.74494602]
[1748550312822,1.02964369,106070.0,106060.0,0.75437455]
[1748550313245,1.02964369,106070.0,106060.0,0.35437455]
[1748550313672,1.02964369,106070.0,106060.0,0.75437455]
[1748550313899,1.02964369,106070.0,106060.0,0.76380299]
[1748550314104,1.02964369,106070.0,106060.0,0.76380075]
[1748550315656,1.02964369,106070.0,106060.0,0.76776515]
[1748550315859,1.02964369,106070.0,106060.0,0.76479134]
[1748550315860,0.60281298,106070.0,106060.0,0.76479134]
[1748550316073,0.60281298,106070.0,106060.0,0.7677667]
[1748550316605,0.60281298,106070.0,106060.0,0.3677667]
[1748550316859,1.02964369,106070.0,106060.0,0.3677667]
[1748550317058,1.02964369,106070.0,106060.0,0.37719505]
[1748550317231,1.02964369,106070.0,106060.0,0.77719505]
[1748550317432,0.60281298,106070.0,106060.0,0.77719505]
[1748550318474,0.60281298,106070.0,106060.0,0.77719535]
[1748550319777,0.60281298,106070.0,106060.0,0.77421965]
[1748550319985,0.60281298,106070.0,106060.0,0.77719552]
[1748550320186,0.60281298,106070.0,106060.0,0.37719552]
[1748550320808,0.60281298,106070.0,106060.0,0.77719552]
[1748550321014,0.60281298,106070.0,106060.0,0.77719604]
[1748550321332,0.60281298,106070.0,106060.0,0.78662422]
[1748550321557,0.61536766,106080.0,106070.0,0.23980991]
[1748550321787,0.6342209,106080.0,106070.0,0.26675191]
[1748550322018,1.35501161,106080.0,106070.0,0.26034068]
[1748550322865,1.35501161,106080.0,106070.0,0.26034086]
[1748550323097,1.05162512,106080.0,106070.0,0.0623585]
[1748550323337,1.48532908,106080.0,106070.0,0.00598992]
[1748550323567,1.48532908,106080.0,106070.0,0.00301615]
[1748550323568,1.59228303,106080.0,106070.0,0.00301615]
[1748550324487,0.23018227,106070.0,106060.0,0.00059181]
[1748550324745,1.89564835,106070.0,106060.0,0.00059181]
[1748550325428,1.89564835,106070.0,106060.0,0.00939611]
[1748550325637,1.89564835,106070.0,106060.0,0.00159181]
[1748550326159,1.46888866,106070.0,106060.0,0.00159181]
[1748550326375,1.46888866,106070.0,106060.0,0.01039263]
[1748550326582,1.46888866,106070.0,106060.0,0.00359181]
[1748550328180,1.46888866,106070.0,106060.0,0.0123901]
[1748550328413,1.46888866,106070.0,106060.0,0.01238853]
[1748550328654,1.46888866,106070.0,106060.0,0.00359181]
[1748550328905,1.46888866,106070.0,106060.0,0.01238838]
[1748550329135,1.46888866,106070.0,106060.0,0.00359181]
[1748550329785,1.46888866,106070.0,106060.0,0.01238868]
[1748550330080,1.46888866,106070.0,106060.0,0.00359181]
[1748550330323,1.04202244,106070.0,106060.0,0.00359181]
[1748550330783,1.04198244,106070.0,106060.0,0.00359181]
[1748550331022,0.23020094,106060.0,106050.0,0.0001]
[1748550331266,1.08393338,106060.0,106050.0,0.00903771]
[1748550331498,1.08393338,106060.0,106050.0,0.00023873]
[1748550331723,1.17498733,106060.0,106050.0,0.00023873]
[1748550332212,1.17498733,106060.0,106050.0,0.00904159]
[1748550332440,1.17498733,106060.0,106050.0,0.00904109]
[1748550332678,1.17498733,106060.0,106050.0,0.00023873]
[1748550333872,1.46882733,106060.0,106050.0,0.00023873]
[1748550334092,1.46882733,106060.0,106050.0,0.00904054]
[1748550334320,1.46882733,106060.0,106050.0,0.00023873]
[1748550335025,1.46882733,106060.0,106050.0,0.00904053]
[1748550335252,1.45292733,106060.0,106050.0,0.00023873]
[1748550335483,1.45292733,106060.0,106050.0,0.00904018]
[1748550335958,1.45292733,106060.0,106050.0,0.0090278]
[1748550336424,1.45292733,106060.0,106050.0,0.00902778]
[1748550336671,1.45292733,106060.0,106050.0,0.00902668]
[1748550336900,1.45292733,106060.0,106050.0,0.00023873]
[1748550338080,1.46932733,106060.0,106050.0,0.00023873]
[1748550339747,1.17548733,106060.0,106050.0,0.00023873]
[1748550339976,1.46928733,106060.0,106050.0,0.00023873]
[1748550344736,1.45288733,106060.0,106050.0,0.00023873]
[1748550344960,1.45288733,106060.0,106050.0,0.01663873]
[1748550344961,1.43650733,106060.0,106050.0,0.01663873]
[1748550345219,0.71592111,106060.0,106050.0,0.01663873]
[1748550345437,0.62486716,106060.0,106050.0,0.04060921]
[1748550345662,0.62486716,106060.0,106050.0,0.68832507]
[1748550345663,0.43629431,106060.0,106050.0,0.68832507]
[1748550345909,0.45515013,106060.0,106050.0,0.70071959]
[1748550346417,0.46457848,106060.0,106050.0,0.70071959]
[1748550346822,0.46457848,106060.0,106050.0,0.79177354]
[1748550346823,0.02828391,106060.0,106050.0,0.79177354]
[1748550347029,0.02828382,106060.0,106050.0,0.79177354]
[1748550347239,0.4551487,106070.0,106060.0,0.24749841]
[1748550347447,0.4551487,106070.0,106060.0,0.91208886]
[1748550347646,0.64370342,106070.0,106060.0,0.91208886]
[1748550347867,0.4551487,106070.0,106060.0,0.91208886]
[1748550348081,0.4551487,106070.0,106060.0,1.31208886]
[1748550348680,0.42686622,106070.0,106060.0,1.40314075]
[1748550348935,0.42786622,106070.0,106060.0,1.40314075]
[1748550349117,0.001,106070.0,106060.0,1.40414083]
[1748550349885,0.01042702,106070.0,106060.0,1.40414083]
[1748550350297,0.01042702,106070.0,106060.0,1.40710397]
[1748550350498,0.01042693,106070.0,106060.0,1.40710397]
[1748550350905,0.01042693,106070.0,106060.0,1.40414083]
[1748550351133,0.001,106070.0,106060.0,1.40414083]
[1748550351600,0.001,106070.0,106060.0,1.98229083]
[1748550352045,0.001,106070.0,106060.0,1.84802083]
[1748550353110,0.001,106070.0,106060.0,1.82026983]
[1748550356745,0.001,106070.0,106060.0,1.81630543]
[1748550357407,0.001,106070.0,106060.0,1.81630484]
[1748550357625,0.01885217,106080.0,106070.0,1.17091285]
[1748550357859,0.01885217,106080.0,106070.0,1.36336351]
[1748550358312,0.00942604,106080.0,106070.0,1.76336351]
[1748550359138,0.52960946,106090.0,106080.0,0.60195753]
[1748550359349,0.52960946,106090.0,106080.0,0.90787923]
[1748550359769,0.52960946,106090.0,106080.0,1.30787923]
[1748550360872,0.52960946,106090.0,106080.0,1.30887923]
[1748550361325,0.64366238,106090.0,106080.0,1.29945301]
[1748550361583,0.64366238,106090.0,106080.0,1.28060012]
[1748550361834,0.64366238,106090.0,106080.0,1.07402678]
[1748550362083,1.05167749,106090.0,106080.0,0.74501548]
[1748550362301,1.06687749,106090.0,106080.0,0.83649548]
[1748550362928,0.64001127,106090.0,106080.0,0.83649548]
[1748550363147,0.64001127,106090.0,106080.0,1.02503243]
[1748550363350,0.64001127,106090.0,106080.0,1.03445927]
[1748550364200,0.62481127,106090.0,106080.0,1.04388593]
[1748550364505,0.44571769,106090.0,106080.0,1.07853882]
[1748550364729,0.44571769,106090.0,106080.0,1.11780589]
[1748550365385,0.64366282,106090.0,106080.0,1.11780589]
[1748550365832,0.64366282,106090.0,106080.0,1.10837967]
[1748550366152,0.64366282,106090.0,106080.0,1.11780589]
[1748550367116,0.44571769,106090.0,106080.0,1.11780589]
[1748550367326,0.45514293,106090.0,106080.0,1.11780589]
[1748550368859,0.45514293,106090.0,106080.0,1.11780598]
[1748550369748,0.65308798,106090.0,106080.0,1.11780598]
[1748550369952,0.65308798,106090.0,106080.0,1.09083201]
[1748550370673,0.64366265,106090.0,106080.0,1.09083201]
[1748550370888,0.63423705,106090.0,106080.0,1.36525877]
[1748550371101,0.63423705,106090.0,106080.0,1.37468552]
[1748550371724,0.63423705,106090.0,106080.0,1.38411201]
[1748550372783,0.63423705,106090.0,106080.0,1.4118897]
[1748550373000,0.643663,106090.0,106080.0,1.42131874]
[1748550373444,0.43629022,106110.0,106100.0,0.20735101]
[1748550373661,0.64362186,106110.0,106100.0,0.30848195]
[1748550373882,0.63419795,106110.0,106100.0,0.30848186]
[1748550374104,1.09166417,106110.0,106100.0,0.40301547]
[1748550374346,0.20737047,106090.0,106080.0,0.47421386]
[1748550374571,0.02827716,106090.0,106080.0,0.69397429]
[1748550374804,0.45514338,106090.0,106080.0,1.0921846]
[1748550375036,0.45514338,106090.0,106080.0,1.10161082]
[1748550375268,0.64097404,106110.0,106100.0,0.20735128]
[1748550375505,0.22617892,106110.0,106100.0,0.22786744]
[1748550375757,0.45513741,106110.0,106100.0,0.35415659]
[1748550375975,0.47398532,106110.0,106100.0,0.36358103]
[1748550376188,0.66246941,106110.0,106100.0,0.36358103]
[1748550376394,0.66246986,106110.0,106100.0,0.36358103]
[1748550376606,0.66646986,106110.0,106100.0,0.36358103]
[1748550377053,0.66646986,106110.0,106100.0,0.37271027]
[1748550377292,0.66646986,106110.0,106100.0,0.37270895]
[1748550378328,0.66646986,106110.0,106100.0,0.77867971]
[1748550378790,0.66646986,106110.0,106100.0,0.76925527]
[1748550378999,0.66646986,106110.0,106100.0,0.77867971]
[1748550379000,0.46856204,106110.0,106100.0,0.77867971]
[1748550379218,0.66646986,106110.0,106100.0,0.76925527]
[1748550381459,0.66646986,106110.0,106100.0,0.36925527]
[1748550381672,0.65704604,106110.0,106100.0,0.33530613]
[1748550381895,1.09931226,106110.0,106100.0,0.71910613]
[1748550382098,1.08988835,106110.0,106100.0,0.71910613]
[1748550382531,1.08988835,106110.0,106100.0,0.72853084]
[1748550382921,1.08046435,106110.0,106100.0,0.71910613]
[1748550383131,1.08046435,106110.0,106100.0,0.72853075]
[1748550383394,1.08046435,106110.0,106100.0,0.71910613]
[1748550385612,1.08046435,106110.0,106100.0,0.42993992]
[1748550385831,0.1979263,106100.0,106090.0,0.09518725]
[1748550386056,0.64039252,106100.0,106090.0,0.45268694]
[1748550386270,0.64039252,106100.0,106090.0,0.85175506]
[1748550386489,0.64039252,106100.0,106090.0,0.83721421]
[1748550387155,0.64981732,106100.0,106090.0,1.02573339]
[1748550387642,0.63521732,106100.0,106090.0,1.04458477]
[1748550387889,0.64464239,106100.0,106090.0,1.06953954]
[1748550388103,0.65974239,106100.0,106090.0,1.06953954]
[1748550388326,0.65974239,106100.0,106090.0,1.06011403]
[1748550388992,0.65974239,106100.0,106090.0,1.07249851]
[1748550389220,0.65974239,106100.0,106090.0,1.08192393]
[1748550390097,0.65974239,106100.0,106090.0,1.07896496]
[1748550390310,0.65974239,106100.0,106090.0,1.07896485]
[1748550390539,0.65974239,106100.0,106090.0,1.06953943]
[1748550390807,0.65974239,106100.0,106090.0,1.07249838]
[1748550391716,0.65974239,106100.0,106090.0,1.07249854]
[1748550391918,0.65974239,106100.0,106090.0,1.08192396]
[1748550392399,0.6446423,106100.0,106090.0,1.08192396]
[1748550392826,0.65406737,106100.0,106090.0,1.09782396]
[1748550393467,0.65406737,106100.0,106090.0,1.10724929]
[1748550393903,0.44671555,106100.0,106090.0,1.10724929]
[1748550394349,0.42786622,106100.0,106090.0,1.11959018]
[1748550394614,0.43729049,106100.0,106090.0,1.11657492]
[1748550394842,0.43729049,106100.0,106090.0,1.11959008]
[1748550395088,0.45613947,106100.0,106090.0,1.11959008]
[1748550395502,0.45613947,106100.0,106090.0,1.10429008]
[1748550396438,0.45613947,106100.0,106090.0,1.39729008]
[1748550398162,0.44671485,106100.0,106090.0,1.39729008]
[1748550398439,0.45613938,106100.0,106090.0,1.41319008]
[1748550398667,0.42786622,106100.0,106090.0,1.41319008]
[1748550399135,0.001,106100.0,106090.0,1.50424401]
[1748550399367,0.001,106100.0,106090.0,1.68523117]
[1748550399587,0.01108267,106120.0,106110.0,0.24719596]
[1748550399807,0.44737182,106120.0,106110.0,0.65701829]
[1748550400037,0.00166,106120.0,106110.0,1.08807224]
[1748550400253,0.00166,106120.0,106110.0,1.48511238]
[1748550400458,0.00166,106120.0,106110.0,1.48510989]
[1748550400665,0.00366,106120.0,106110.0,1.48510989]
[1748550400888,0.00366,106120.0,106110.0,1.48116504]
[1748550401094,0.00166,106120.0,106110.0,1.48116504]
[1748550401302,0.00266,106120.0,106110.0,1.48116504]
[1748550401518,0.00266,106120.0,106110.0,1.48511337]
[1748550401740,0.00166,106120.0,106110.0,1.48511337]
[1748550401959,0.00166,106120.0,106110.0,1.48711337]
[1748550404827,0.00166,106120.0,106110.0,1.50597337]
[1748550407676,0.00166,106120.0,106110.0,1.50597255]
[1748550408778,0.00166,106120.0,106110.0,1.50581255]
[1748550409652,0.00166,106120.0,106110.0,1.48695255]
[1748550411210,0.42852622,106120.0,106110.0,1.19415255]
[1748550411485,0.44737182,106120.0,106110.0,0.665202]
[1748550411705,0.42852622,106120.0,106110.0,1.05295033]
[1748550411933,0.4379488,106120.0,106110.0,1.06520252]
[1748550412177,0.44737156,106120.0,106110.0,1.07974337]
[1748550412400,0.45679449,106120.0,106110.0,1.07974337]
[1748550412844,0.45679449,106120.0,106110.0,1.47974337]
[1748550413060,0.45679449,106120.0,106110.0,1.4836917]
[1748550413508,0.45679449,106120.0,106110.0,1.46354337]
[1748550413779,0.47289449,106120.0,106110.0,1.46354337]
[1748550414021,0.48231751,106120.0,106110.0,1.46354337]
[1748550414245,0.68020721,106120.0,106110.0,1.46350337]
[1748550414476,0.46347191,106120.0,106110.0,1.46350337]
[1748550415829,0.47289432,106120.0,106110.0,1.46350337]
[1748550416271,0.46347147,106120.0,106110.0,1.45753355]
[1748550416505,0.4728944,106120.0,106110.0,1.46745126]
[1748550416962,0.4728944,106120.0,106110.0,1.08369126]
[1748550417221,0.4728944,106120.0,106110.0,1.46745126]
[1748550417650,0.46347147,106120.0,106110.0,1.46745126]
[1748550417880,0.47289432,106120.0,106110.0,1.46741126]
[1748550420804,0.47289432,106120.0,106110.0,1.46741292]
[1748550421531,0.48231743,106120.0,106110.0,1.16530936]
[1748550421766,0.66693806,106120.0,106110.0,0.6609838]
[1748550422239,0.66693806,106120.0,106110.0,1.05802727]
[1748550422447,0.65751521,106120.0,106110.0,0.34511451]
[1748550422879,0.62641521,106120.0,106110.0,0.34511451]
[1748550423559,0.62641521,106120.0,106110.0,0.3421]
[1748550423824,0.62641521,106120.0,106110.0,0.00511488]
[1748550423825,1.34592143,106120.0,106110.0,0.00511488]
[1748550424288,1.34592143,106120.0,106110.0,0.01965573]
[1748550424289,0.20897184,106120.0,106110.0,0.01965573]
[1748550424514,0.65468455,106120.0,106110.0,0.22997043]
[1748550424740,0.6452617,106120.0,106110.0,0.22997043]
[1748550425896,0.6452617,106120.0,106110.0,0.6324978]
[1748550426117,0.6452617,106120.0,106110.0,0.62307416]
[1748550426328,0.6452617,106120.0,106110.0,0.62307425]
[1748550427628,0.6452617,106120.0,106110.0,1.02307425]
[1748550427865,0.6452617,106120.0,106110.0,1.03250067]
[1748550429851,0.44737253,106120.0,106110.0,1.04192431]
[1748550430053,0.44737218,106120.0,106110.0,1.04192369]
[1748550431297,0.63583806,106120.0,106110.0,1.04192369]
[1748550431510,0.44737218,106120.0,106110.0,1.04192369]
[1748550432204,0.44737218,106120.0,106110.0,1.03592315]
[1748550432419,0.44737218,106120.0,106110.0,1.04192458]
[1748550434501,0.44737218,106120.0,106110.0,1.04587291]
[1748550434717,0.45679538,106120.0,106110.0,1.04575291]
[1748550434929,0.44737218,106120.0,106110.0,1.03632935]
[1748550435147,0.44737218,106120.0,106110.0,1.04180458]
[1748550435818,0.65468455,106120.0,106110.0,0.63939783]
[1748550436038,0.65468455,106120.0,106110.0,0.61333401]
[1748550436256,0.65468455,106120.0,106110.0,0.32081401]
[1748550436468,0.65468455,106120.0,106110.0,0.72081401]
[1748550436685,0.6452617,106120.0,106110.0,0.32081401]
[1748550436984,0.6759617,106120.0,106110.0,0.33023783]
[1748550437213,0.6759617,106120.0,106110.0,0.33966156]
[1748550437431,0.44737156,106120.0,106110.0,0.34908458]
[1748550437660,0.4379488,106120.0,106110.0,0.36863291]
[1748550437876,0.44737156,106120.0,106110.0,0.36564625]
[1748550438508,0.45679449,106120.0,106110.0,0.36564625]
[1748550438996,0.44737156,106120.0,106110.0,0.36564625]
[1748550439652,0.46621752,106120.0,106110.0,0.36564625]
[1748550440105,0.46621752,106120.0,106110.0,0.76564625]
[1748550440768,0.46621752,106120.0,106110.0,0.76263148]
[1748550440989,0.46621752,106120.0,106110.0,0.76564607]
[1748550442095,0.47564072,106120.0,106110.0,0.76564607]
[1748550442933,0.47564072,106120.0,106110.0,0.36564607]
[1748550443614,0.47564072,106120.0,106110.0,0.76564607]
[1748550443831,0.46621752,106120.0,106110.0,0.76564607]
[1748550444059,0.6641066,106120.0,106110.0,0.76564607]
[1748550444278,0.6641066,106120.0,106110.0,1.05808607]
[1748550444279,0.66410731,106120.0,106110.0,1.05808607]
[1748550445214,0.65468402,106120.0,106110.0,1.04866253]
[1748550446186,0.46621814,106120.0,106110.0,1.05808609]
[1748550447318,0.65468402,106120.0,106110.0,1.05808609]
[1748550447543,0.66410731,106120.0,106110.0,1.05808609]
[1748550448323,0.47564143,106120.0,106110.0,1.04248609]
[1748550448979,0.46621814,106120.0,106110.0,1.04248609]
[1748550449196,0.46621814,106120.0,106110.0,1.05788609]
[1748550449645,0.46621814,106120.0,106110.0,1.05788612]
[1748550450938,0.65468402,106120.0,106110.0,1.05788612]
[1748550451985,0.46621814,106120.0,106110.0,1.05788612]
[1748550454034,0.45679494,106120.0,106110.0,1.05788612]
[1748550460086,0.45679485,106120.0,106110.0,1.05788612]
[1748550460681,0.46621796,106120.0,106110.0,1.05788612]
[1748550462833,0.46621796,106120.0,106110.0,1.05487148]
[1748550463034,0.46621796,106120.0,106110.0,1.05788612]
[1748550464739,0.45679485,106120.0,106110.0,1.05788612]
[1748550465656,0.44737183,106120.0,106110.0,1.05788612]
[1748550465846,0.45679485,106120.0,106110.0,1.05788612]
[1748550470420,0.46621796,106120.0,106110.0,1.05788612]
[1748550470633,0.46621796,106120.0,106110.0,1.12272007]
[1748550471065,0.46621796,106120.0,106110.0,1.05788612]
[1748550471512,0.45679485,106120.0,106110.0,1.05788612]
[1748550471731,0.45679485,106120.0,106110.0,1.12270581]
[1748550471949,0.45679485,106120.0,106110.0,1.11874442]
[1748550472837,0.45679485,106120.0,106110.0,1.08705624]
[1748550473054,0.45679485,106120.0,106110.0,1.05796367]
[1748550474603,0.45679485,106120.0,106110.0,1.12276222]
[1748550475058,0.44737183,106120.0,106110.0,1.12276222]
[1748550475297,0.44737183,106120.0,106110.0,1.05796367]
[1748550476351,0.44737183,106120.0,106110.0,1.12274696]
[1748550476586,0.44737183,106120.0,106110.0,1.11872105]
[1748550477440,0.44737183,106120.0,106110.0,1.1227442]
[1748550478094,0.44737183,106120.0,106110.0,1.12274423]
[1748550480111,0.43794871,106120.0,106110.0,1.12274423]
[1748550480339,0.44737156,106120.0,106110.0,1.12274423]
[1748550480559,0.45679405,106120.0,106110.0,1.12274423]
[1748550480771,0.45679405,106120.0,106110.0,1.12274361]
[1748550481312,0.00942071,106140.0,106130.0,0.5618328]
[1748550481546,0.43628569,106160.0,106150.0,0.54724577]
[1748550481792,0.46070446,106160.0,106150.0,0.64397842]
[1748550482034,0.47954349,106160.0,106150.0,1.05339842]
[1748550482480,0.48896314,106160.0,106150.0,1.05339842]
[1748550482723,0.48945487,106160.0,106150.0,1.05339842]
[1748550482964,0.48945487,106160.0,106150.0,1.07219473]
[1748550483401,0.48945487,106160.0,106150.0,1.06915595]
[1748550484312,0.68584974,106160.0,106150.0,1.06915595]
[1748550484744,0.68585045,106160.0,106150.0,1.07218914]
[1748550485208,0.68585045,106160.0,106150.0,1.07228914]
[1748550485422,0.68585045,106160.0,106150.0,1.06925595]
[1748550485865,0.68585045,106160.0,106150.0,1.05983595]